fUST/lending_fUST_20240406
["ID","MTS","AMOUNT","RATE_DAILY","PERIOD"]
[321705058,1712417232316,-153.0,0.000253,2]
[321705059,1712417232339,-153.0,0.000253,2]
[321705060,1712417232362,-153.0,0.000253,2]
[321705061,1712417232384,-153.0,0.000253,2]
[321705062,1712417232407,-153.0,0.000253,2]
[321705063,1712417232429,-154.1119477,0.000253,2]
[321705064,1712417232451,-153.0,0.000253,2]
[321705065,1712417232491,279.95840469,0.00025267,2]
[321705066,1712417234368,588.14375574,0.00025267,2]
[321705067,1712417239961,500.0,0.00024994,2]
[321705068,1712417240254,500.0,0.00025268,2]
[321705069,1712417242441,2343.49,0.00024994,2]
[321705070,1712417242766,2343.49,0.00025268,2]
[321705071,1712417249065,500.0,0.00024994,2]
[321705072,1712417249320,500.0,0.00025268,2]
[321705073,1712417253284,2435.78,0.00024994,2]
[321705074,1712417253569,2435.78,0.00025268,2]
[321705075,1712417257055,500.0,0.00024994,2]
[321705076,1712417257356,500.0,0.00025268,2]
[321705077,1712417265837,1618.42,0.00024994,2]
[321705078,1712417266131,1618.42,0.00025268,2]
[321705080,1712417277547,660.67,0.00024994,2]
[321705081,1712417277815,660.67,0.00025268,2]
[321705082,1712417280042,553.94787369,0.00024994,2]
[321705083,1712417288048,1516.79,0.00024994,2]
[321705084,1712417288332,1516.79,0.00025268,2]
[321705086,1712417300046,597.96866583,0.00024994,2]
[321705087,1712417300070,7192.20133417,0.00024994,2]
[321705088,1712417300318,7790.17,0.00025268,2]
[321705092,1712417330313,9674.39,0.00024994,2]
[321705093,1712417330578,9674.39,0.00025268,2]
[321705094,1712417334697,593.5,0.00024994,2]
[321705095,1712417334972,593.5,0.00025268,2]
[321705096,1712417338756,1607.65,0.00024994,2]
[321705097,1712417339062,1607.65,0.00025268,2]
[321705100,1712417350747,2172.51,0.00024994,2]
[321705101,1712417351040,2172.51,0.00025268,2]
[321705102,1712417361803,709.78,0.00024994,2]
[321705103,1712417362089,709.78,0.00025268,2]
[321705104,1712417372663,500.0,0.00024994,2]
[321705105,1712417373250,500.0,0.00025268,2]
[321705106,1712417379045,500.0,0.00024994,2]
[321705107,1712417379304,500.0,0.00025268,2]
[321705108,1712417388870,2518.94,0.00024994,2]
[321705109,1712417389138,2518.94,0.00025268,2]
[321705110,1712417391284,500.0,0.00024994,2]
[321705111,1712417391558,500.0,0.00025268,2]
[321705112,1712417397933,1512.98,0.00024994,2]
[321705113,1712417398570,1512.98,0.00025268,2]
[321705114,1712417401844,711.05,0.00024994,2]
[321705115,1712417402150,711.05,0.00025268,2]
[321705116,1712417415622,1111.04,0.00024994,2]
[321705117,1712417415912,1111.04,0.00025268,2]
[321705120,1712417424353,500.0,0.00024994,2]
[321705121,1712417424632,500.0,0.00025268,2]
[321705122,1712417426479,164.93017218,0.00025264,2]
[321705168,1712417431857,500.0,0.00024994,2]
[321705194,1712417432139,500.0,0.00025268,2]
[321705195,1712417432317,714.7,0.00024994,2]
[321705196,1712417432582,714.7,0.00025268,2]
[321705215,1712417439332,1861.69,0.00024994,2]
[321705229,1712417439609,1861.69,0.00025268,2]
[321705233,1712417440488,-155.0,0.00025362,2]
[321705234,1712417440497,-300.0,0.00025362,2]
[321705235,1712417440507,-300.0,0.00025362,2]
[321705236,1712417440516,-1693.53237162,0.00025363,2]
[321705237,1712417440532,-5760.94780012,0.00025363,2]
[321705238,1712417440546,-3437.51804872,0.00025363,2]
[321705239,1712417440561,-8636.67500908,0.00025363,2]
[321705240,1712417440575,-6433.19472855,0.00025363,2]
[321705241,1712417440585,-6903.37194962,0.00025364,2]
[321705242,1712417440594,-5158.46732015,0.00025364,2]
[321705280,1712417442959,-1744.90462947,0.00025364,2]
[321705281,1712417442969,-155.05426899,0.00025366,2]
[321705282,1712417442978,-153.0,0.000254,2]
[321705283,1712417442988,-163.31476413,0.00025412,2]
[321705284,1712417442998,-218.35920183,0.00025442,2]
[321705285,1712417443007,-153.0,0.000255,2]
[321705286,1712417443016,-153.0,0.000255,2]
[321705287,1712417443026,-153.6029454,0.000255,2]
[321705288,1712417443036,-153.0,0.000255,2]
[321705289,1712417443045,-153.0,0.000255,2]
[321705290,1712417443055,-500.0,0.00025542,2]
[321705291,1712417443064,-500.0,0.00025542,2]
[321705292,1712417443073,-956.91,0.00025542,2]
[321705293,1712417443082,-500.0,0.00025542,2]
[321705294,1712417443092,-500.0,0.00025542,2]
[321705295,1712417443101,-732.82,0.00025542,2]
[321705296,1712417443110,-500.0,0.00025542,2]
[321705297,1712417443119,-2343.49,0.00025542,2]
[321705298,1712417443129,-500.0,0.00025542,2]
[321705299,1712417443138,-2435.78,0.00025542,2]
[321705300,1712417443149,-500.0,0.00025542,2]
[321705301,1712417443160,-1618.42,0.00025542,2]
[321705302,1712417443170,-23.50304513,0.00025542,2]
[321705303,1712417443184,-637.16695487,0.00025542,2]
[321705304,1712417443195,-1516.79,0.00025542,2]
[321705305,1712417443205,-7790.17,0.00025542,2]
[321705306,1712417443217,-9674.39,0.00025542,2]
[321705307,1712417443228,-593.5,0.00025542,2]
[321705308,1712417443237,-1607.65,0.00025542,2]
[321705309,1712417443247,-2172.51,0.00025542,2]
[321705310,1712417443256,-709.78,0.00025542,2]
[321705311,1712417443265,-500.0,0.00025542,2]
[321705312,1712417443277,-500.0,0.00025542,2]
[321705313,1712417443287,-2518.94,0.00025542,2]
[321705314,1712417443297,-500.0,0.00025542,2]
[321705315,1712417443307,-1512.98,0.00025542,2]
[321705316,1712417443317,-711.05,0.00025542,2]
[321705317,1712417443328,-1111.04,0.00025542,2]
[321705318,1712417443338,-500.0,0.00025542,2]
[321705319,1712417443348,-500.0,0.00025542,2]
[321705320,1712417443358,-714.7,0.00025542,2]
[321705321,1712417443368,-1861.69,0.00025542,2]
[321705322,1712417443378,-1162.04,0.00025543,2]
[321705323,1712417443387,-500.0,0.00025543,2]
[321705324,1712417443397,-500.0,0.00025543,2]
[321705325,1712417443407,-500.0,0.00025544,2]
[321705326,1712417443417,-1500.0,0.00025577,2]
[321705327,1712417443428,-40405.59030213,0.00025677,2]
[321705328,1712417443438,-645.37364718,0.0002568,2]
[321705329,1712417443449,-311.83459824,0.00025682,2]
[321705330,1712417443459,-772.28494587,0.00025682,2]
[321705331,1712417443470,-1667.50669118,0.00025682,2]
[321705332,1712417443481,-164.68022027,0.00025682,2]
[321705333,1712417443492,-224.09145906,0.00025682,2]
[321705334,1712417443502,-230.2993335,0.00025682,2]
[321705335,1712417443513,-156.67505403,0.00025682,2]
[321705336,1712417443523,-155.12409928,0.00025682,2]
[321705337,1712417443534,-1273.43712135,0.00025683,2]
[321705338,1712417443543,-163.31476413,0.00025762,2]
[321705339,1712417443553,-153.0,0.00025764,2]
[321705340,1712417443563,-500.0,0.00025816,2]
[321705341,1712417443573,-500.0,0.00025816,2]
[321705342,1712417443582,-956.91,0.00025816,2]
[321705343,1712417443593,-500.0,0.00025816,2]
[321705344,1712417443604,-500.0,0.00025816,2]
[321705345,1712417443615,-732.82,0.00025816,2]
[321705346,1712417443626,-500.0,0.00025816,2]
[321705347,1712417443636,-2343.49,0.00025816,2]
[321705348,1712417443646,-500.0,0.00025816,2]
[321705349,1712417443656,-2435.78,0.00025816,2]
[321705350,1712417443666,-500.0,0.00025816,2]
[321705351,1712417443675,-1618.42,0.00025816,2]
[321705352,1712417443684,-660.67,0.00025816,2]
[321705353,1712417443799,-1516.79,0.00025816,2]
[321705354,1712417443809,-7790.17,0.00025816,2]
[321705355,1712417443819,-9674.39,0.00025816,2]
[321705356,1712417443830,-593.5,0.00025816,2]
[321705357,1712417443839,-1607.65,0.00025816,2]
[321705358,1712417443849,-2172.51,0.00025816,2]
[321705359,1712417443860,-709.78,0.00025816,2]
[321705360,1712417443869,-500.0,0.00025816,2]
[321705361,1712417443878,-500.0,0.00025816,2]
[321705362,1712417443888,-2518.94,0.00025816,2]
[321705363,1712417443897,-500.0,0.00025816,2]
[321705364,1712417443906,-1512.98,0.00025816,2]
[321705365,1712417443916,-711.05,0.00025816,2]
[321705366,1712417443926,-1111.04,0.00025816,2]
[321705367,1712417443935,-500.0,0.00025816,2]
[321705368,1712417443945,-500.0,0.00025816,2]
[321705369,1712417443955,-714.7,0.00025816,2]
[321705370,1712417443964,-1861.69,0.00025816,2]
[321705371,1712417443973,-1162.04,0.00025817,2]
[321705372,1712417443983,-409.37900707,0.00025817,2]
[321705373,1712417443992,-500.0,0.00025817,2]
[321705374,1712417444002,-500.0,0.00025818,2]
[321705375,1712417444011,-221.9766468,0.000259,2]
[321705376,1712417444020,-153.0,0.000259,2]
[321705377,1712417444031,-153.0,0.000259,2]
[321705378,1712417444040,-306.0,0.000259,2]
[321705379,1712417444050,-153.0,0.000259,2]
[321705380,1712417444059,-170.0,0.00026,2]
[321705381,1712417444069,-500.0,0.0002609,2]
[321705382,1712417444078,-500.0,0.0002609,2]
[321705383,1712417444087,-956.91,0.0002609,2]
[321705384,1712417444096,-500.0,0.0002609,2]
[321705385,1712417444105,-500.0,0.0002609,2]
[321705386,1712417444114,-732.82,0.0002609,2]
[321705387,1712417444124,-500.0,0.0002609,2]
[321705388,1712417444134,-2343.49,0.0002609,2]
[321705389,1712417444143,-500.0,0.0002609,2]
[321705390,1712417444155,-2435.78,0.0002609,2]
[321705391,1712417444164,-500.0,0.0002609,2]
[321705392,1712417444173,-1042.29290964,0.0002609,2]
[321705393,1712417444186,-576.12709036,0.0002609,2]
[321705394,1712417444196,-660.67,0.0002609,2]
[321705395,1712417444205,-1516.79,0.0002609,2]
[321705396,1712417444215,-7790.17,0.0002609,2]
[321705397,1712417444224,-1161.70230936,0.0002609,2]
[321705426,1712417445962,-153.0,0.000259,2]
[321705427,1712417445972,-8512.68769064,0.0002609,2]
[321705428,1712417445981,-593.5,0.0002609,2]
[321705429,1712417445990,-1607.65,0.0002609,2]
[321705430,1712417446000,-2172.51,0.0002609,2]
[321705431,1712417446009,-709.78,0.0002609,2]
[321705432,1712417446018,-500.0,0.0002609,2]
[321705433,1712417446027,-500.0,0.0002609,2]
[321705434,1712417446041,-2518.94,0.0002609,2]
[321705435,1712417446050,-500.0,0.0002609,2]
[321705436,1712417446059,-1512.98,0.0002609,2]
[321705437,1712417446068,-711.05,0.0002609,2]
[321705438,1712417446078,-1111.04,0.0002609,2]
[321705439,1712417446087,-500.0,0.0002609,2]
[321705440,1712417446097,-500.0,0.0002609,2]
[321705441,1712417446107,-714.7,0.0002609,2]
[321705442,1712417446117,-1861.69,0.0002609,2]
[321705443,1712417446127,-1162.04,0.00026091,2]
[321705444,1712417446137,-500.0,0.00026091,2]
[321705445,1712417446146,-500.0,0.00026092,2]
[321705446,1712417446155,-163.31476413,0.00026112,2]
[321705447,1712417446165,-150.0,0.00026135,2]
[321705448,1712417446175,-170.0,0.00026164,2]
[321705449,1712417446184,-500.0,0.00026364,2]
[321705450,1712417446194,-500.0,0.00026364,2]
[321705451,1712417446204,-956.91,0.00026364,2]
[321705452,1712417446213,-500.0,0.00026364,2]
[321705453,1712417446222,-500.0,0.00026364,2]
[321705454,1712417446232,-732.82,0.00026364,2]
[321705455,1712417446242,-500.0,0.00026364,2]
[321705456,1712417446251,-2343.49,0.00026364,2]
[321705457,1712417446261,-500.0,0.00026364,2]
[321705458,1712417446270,-2435.78,0.00026364,2]
[321705459,1712417446283,-500.0,0.00026364,2]
[321705460,1712417446293,-1618.42,0.00026364,2]
[321705461,1712417446302,-660.67,0.00026364,2]
[321705462,1712417446311,-1516.79,0.00026364,2]
[321705463,1712417446321,-7790.17,0.00026364,2]
[321705464,1712417446330,-9674.39,0.00026364,2]
[321705465,1712417446339,-593.5,0.00026364,2]
[321705466,1712417446348,-1607.65,0.00026364,2]
[321705467,1712417446357,-2172.51,0.00026364,2]
[321705468,1712417446367,-709.78,0.00026364,2]
[321705469,1712417446375,-291.22378649,0.00026364,2]
[321705470,1712417446385,-500.0,0.00026364,2]
[321705471,1712417446394,-2518.94,0.00026364,2]
[321705472,1712417446403,-500.0,0.00026364,2]
[321705473,1712417446412,-1512.98,0.00026364,2]
[321705474,1712417446422,-711.05,0.00026364,2]
[321705475,1712417446431,-1111.04,0.00026364,2]
[321705476,1712417446440,-500.0,0.00026364,2]
[321705477,1712417446449,-500.0,0.00026364,2]
[321705478,1712417446459,-714.7,0.00026364,2]
[321705479,1712417446468,-1861.69,0.00026364,2]
[321705480,1712417446477,-1162.04,0.00026365,2]
[321705481,1712417446486,-500.0,0.00026365,2]
[321705482,1712417446495,-500.0,0.00026366,2]
[321705483,1712417446504,-163.31476413,0.00026463,2]
[321705484,1712417446513,-245.38673713,0.00026499,2]
[321705485,1712417446522,-500.0,0.00026638,2]
[321705486,1712417446533,-500.0,0.00026638,2]
[321705487,1712417446542,-956.91,0.00026638,2]
[321705488,1712417446552,-500.0,0.00026638,2]
[321705489,1712417446561,-500.0,0.00026638,2]
[321705490,1712417446570,-732.82,0.00026638,2]
[321705491,1712417446579,-500.0,0.00026638,2]
[321705492,1712417446588,-2343.49,0.00026638,2]
[321705493,1712417446598,-500.0,0.00026638,2]
[321705494,1712417446608,-2435.78,0.00026638,2]
[321705495,1712417446619,-500.0,0.00026638,2]
[321705496,1712417446630,-1618.42,0.00026638,2]
[321705497,1712417446640,-660.67,0.00026638,2]
[321705498,1712417446650,-1516.79,0.00026638,2]
[321705499,1712417446660,-7790.17,0.00026638,2]
[321705500,1712417446670,-9674.39,0.00026638,2]
[321705501,1712417446680,-593.5,0.00026638,2]
[321705502,1712417446690,-1607.65,0.00026638,2]
[321705503,1712417446701,-2172.51,0.00026638,2]
[321705504,1712417446711,-709.78,0.00026638,2]
[321705505,1712417446721,-500.0,0.00026638,2]
[321705506,1712417446731,-2518.94,0.00026638,2]
[321705507,1712417446742,-500.0,0.00026638,2]
[321705508,1712417446752,-1512.98,0.00026638,2]
[321705509,1712417446762,-711.05,0.00026638,2]
[321705510,1712417446771,-1111.04,0.00026638,2]
[321705511,1712417446786,-500.0,0.00026638,2]
[321705512,1712417446795,-500.0,0.00026638,2]
[321705513,1712417446804,-714.7,0.00026638,2]
[321705514,1712417446814,-1861.69,0.00026638,2]
[321705515,1712417446825,-1162.04,0.00026639,2]
[321705516,1712417446835,-500.0,0.00026639,2]
[321705517,1712417446845,-187.87119993,0.0002664,2]
[321705518,1712417446856,-163.31476413,0.00026813,2]
[321705519,1712417446866,-500.0,0.00026912,2]
[321705520,1712417446877,-500.0,0.00026912,2]
[321705521,1712417446887,-956.91,0.00026912,2]
[321705522,1712417446897,-500.0,0.00026912,2]
[321705523,1712417446907,-500.0,0.00026912,2]
[321705524,1712417446916,-732.82,0.00026912,2]
[321705525,1712417446926,-500.0,0.00026912,2]
[321705526,1712417446935,-2343.49,0.00026912,2]
[321705527,1712417446944,-500.0,0.00026912,2]
[321705528,1712417446954,-2435.78,0.00026912,2]
[321705529,1712417446964,-500.0,0.00026912,2]
[321705530,1712417446974,-1618.42,0.00026912,2]
[321705531,1712417446984,-660.67,0.00026912,2]
[321705532,1712417446994,-1516.79,0.00026912,2]
[321705533,1712417447005,-7790.17,0.00026912,2]
[321705534,1712417447014,-9674.39,0.00026912,2]
[321705535,1712417447024,-593.5,0.00026912,2]
[321705536,1712417447032,-1607.65,0.00026912,2]
[321705537,1712417447042,-2172.51,0.00026912,2]
[321705538,1712417447050,-709.78,0.00026912,2]
[321705539,1712417447060,-500.0,0.00026912,2]
[321705540,1712417447071,-2518.94,0.00026912,2]
[321705541,1712417447081,-500.0,0.00026912,2]
[321705542,1712417447090,-1512.98,0.00026912,2]
[321705543,1712417447100,-711.05,0.00026912,2]
[321705544,1712417447109,-1111.04,0.00026912,2]
[321705545,1712417447119,-500.0,0.00026912,2]
[321705546,1712417447128,-500.0,0.00026912,2]
[321705547,1712417447137,-714.7,0.00026912,2]
[321705548,1712417447146,-1861.69,0.00026912,2]
[321705549,1712417447155,-1162.04,0.00026913,2]
[321705550,1712417447165,-500.0,0.00026913,2]
[321705551,1712417447174,-1572.33263983,0.00027,2]
[321705552,1712417447183,-537.28100737,0.00027062,2]
[321705553,1712417447192,-372.74354949,0.00027062,2]
[321705554,1712417447201,-153.0,0.00027096,2]
[321705555,1712417447210,-154.7674614,0.00027096,2]
[321705556,1712417447219,-153.0,0.00027096,2]
[321705557,1712417447229,-153.0,0.00027096,2]
[321705558,1712417447238,-153.0,0.00027096,2]
[321705559,1712417447247,-153.0,0.00027096,2]
[321705560,1712417447256,-153.0,0.00027096,2]
[321705561,1712417447265,-153.0,0.00027096,2]
[321705562,1712417447274,-153.0,0.00027096,2]
[321705563,1712417447285,-153.0,0.00027096,2]
[321705564,1712417447294,-153.0,0.00027096,2]
[321705565,1712417447303,-153.0,0.00027096,2]
[321705566,1712417447311,-153.0,0.00027096,2]
[321705567,1712417447321,-153.0,0.00027096,2]
[321705568,1712417447330,-153.0,0.00027096,2]
[321705569,1712417447339,-153.0,0.00027096,2]
[321705570,1712417447348,-153.0,0.00027096,2]
[321705571,1712417447357,-153.0,0.00027096,2]
[321705572,1712417447367,-214.5726891,0.00027096,2]
[321705573,1712417447377,-153.0,0.00027096,2]
[321705574,1712417447386,-153.0,0.00027096,2]
[321705575,1712417447395,-153.0,0.00027096,2]
[321705576,1712417447404,-156.34222761,0.00027123,2]
[321705577,1712417447413,-170.0,0.00027185,2]
[321705578,1712417447422,-500.0,0.00027186,2]
[321705579,1712417447432,-500.0,0.00027186,2]
[321705580,1712417447441,-956.91,0.00027186,2]
[321705581,1712417447451,-500.0,0.00027186,2]
[321705582,1712417447461,-500.0,0.00027186,2]
[321705583,1712417447470,-732.82,0.00027186,2]
[321705584,1712417447479,-500.0,0.00027186,2]
[321705585,1712417447488,-2343.49,0.00027186,2]
[321705586,1712417447498,-500.0,0.00027186,2]
[321705587,1712417447507,-2435.78,0.00027186,2]
[321705588,1712417447516,-500.0,0.00027186,2]
[321705589,1712417447525,-1618.42,0.00027186,2]
[321705590,1712417447534,-660.67,0.00027186,2]
[321705591,1712417447544,-1516.79,0.00027186,2]
[321705592,1712417447554,-7790.17,0.00027186,2]
[321705593,1712417447564,-9674.39,0.00027186,2]
[321705594,1712417447573,-593.5,0.00027186,2]
[321705595,1712417447583,-1607.65,0.00027186,2]
[321705596,1712417447678,-2172.51,0.00027186,2]
[321705597,1712417447688,-709.78,0.00027186,2]
[321705598,1712417447700,-500.0,0.00027186,2]
[321705599,1712417447710,-2518.94,0.00027186,2]
[321705600,1712417447720,-500.0,0.00027186,2]
[321705601,1712417447730,-1512.98,0.00027186,2]
[321705602,1712417447742,-711.05,0.00027186,2]
[321705603,1712417447752,-1111.04,0.00027186,2]
[321705604,1712417447762,-500.0,0.00027186,2]
[321705605,1712417447772,-500.0,0.00027186,2]
[321705606,1712417447785,-714.7,0.00027186,2]
[321705607,1712417447794,-1861.69,0.00027186,2]
[321705608,1712417447804,-1162.04,0.00027187,2]
[321705609,1712417447815,-500.0,0.00027187,2]
[321705610,1712417447825,-156.56610872,0.00027337,2]
[321705611,1712417447835,-1000.0,0.00027397,7]
[321705612,1712417447844,-1000.0,0.00027397,7]
[321705613,1712417447853,-1000.0,0.00027397,7]
[321705614,1712417447863,-1000.0,0.00027397,7]
[321705615,1712417447874,-1000.0,0.00027397,7]
[321705616,1712417447885,-1000.0,0.00027397,7]
[321705617,1712417447894,-1082.28,0.00027397,7]
[321705618,1712417447904,-2000.04655,0.00027397,2]
[321705619,1712417447914,-2000.04655,0.00027397,2]
[321705620,1712417447923,-2000.04655,0.00027397,2]
[321705621,1712417447933,-2000.04655,0.00027397,2]
[321705622,1712417447943,-2000.04655,0.00027397,2]
[321705623,1712417447952,-2000.04655,0.00027397,2]
[321705624,1712417447962,-2000.04655,0.00027397,2]
[321705625,1712417447972,-2000.04655,0.00027397,2]
[321705626,1712417447981,-2000.04655,0.00027397,2]
[321705627,1712417447989,-2000.04655,0.00027397,2]
[321705628,1712417447999,-2000.04655,0.00027397,2]
[321705629,1712417448008,-915.04292024,0.00027397,2]
[321705634,1712417460069,500.0,0.00024994,2]
[321705635,1712417460375,500.0,0.00025268,2]
[321705636,1712417465242,546.531395,0.00030137,120]
[321705637,1712417469193,1522.36,0.00024994,2]
[321705638,1712417469723,1522.36,0.00025268,2]
[321705639,1712417471654,188.09865874,0.00025262,2]
[321705641,1712417480614,1011.51,0.00024994,2]
[321705642,1712417480899,1011.51,0.00025268,2]
[321705644,1712417486423,1165.75148064,0.00025263,2]
[321705646,1712417490974,1464.68,0.00024994,2]
[321705647,1712417491269,1464.68,0.00025268,2]
[321705648,1712417491400,500.0,0.00024994,2]
[321705649,1712417491723,500.0,0.00025268,2]
[321705651,1712417506475,500.0,0.00024994,2]
[321705652,1712417507142,500.0,0.00025268,2]
[321705653,1712417521922,4868.85,0.00024994,2]
[321705654,1712417522209,4868.85,0.00025268,2]
[321705656,1712417533895,948.0,0.00024994,2]
[321705657,1712417534211,948.0,0.00025268,2]
[321705659,1712417578656,6046.49,0.00024994,2]
[321705660,1712417578981,3445.09835427,0.00025268,2]
[321705661,1712417579013,2601.39164573,0.00025268,2]
[321705662,1712417598733,1357.82,0.00024994,2]
[321705663,1712417599314,1357.82,0.00025268,2]
[321705664,1712417609994,500.0,0.00024994,2]
[321705665,1712417610322,500.0,0.00025268,2]
[321705666,1712417619119,1574.33,0.00024994,2]
[321705667,1712417619413,1574.33,0.00025268,2]
[321705668,1712417623716,299.06828848,0.00025268,2]
[321705669,1712417646565,945.62,0.00024994,2]
[321705670,1712417646847,945.62,0.00025268,2]
[321705671,1712417663816,694.4,0.00024994,2]
[321705672,1712417664108,694.4,0.00025268,2]
[321705673,1712417687325,1163.56,0.00024994,2]
[321705674,1712417687908,1163.56,0.00025268,2]
[321705676,1712417705619,5377.6809031,0.00024864,2]
[321705677,1712417709929,500.0,0.00024994,2]
[321705678,1712417710305,500.0,0.00025268,2]
[321705679,1712417719336,1395.5,0.00024994,2]
[321705680,1712417719625,1395.5,0.00025268,2]
[321705681,1712417725082,157.948019,0.00024864,2]
[321705682,1712417730818,927.22,0.00024994,2]
[321705683,1712417731073,927.22,0.00025268,2]
[321705684,1712417743248,500.0,0.00024994,2]
[321705685,1712417743831,500.0,0.00025268,2]
[321705686,1712417747746,4463.12,0.00024994,2]
[321705687,1712417748017,4463.12,0.00025268,2]
[321705688,1712417755543,220.58970642,0.00025268,2]
[321705689,1712417956909,409.898546,0.00030137,120]
[321705690,1712418029310,-300.0,0.00025359,2]
[321705691,1712418029334,-300.0,0.00025359,2]
[321705692,1712418029358,-5315.89675683,0.0002536,2]
[321705693,1712418029382,-12180.17864255,0.00025361,2]
[321705694,1712418029406,-500.0,0.00025363,2]
[321705695,1712418029429,-500.0,0.00025363,2]
[321705696,1712418029454,-598.07,0.00025363,2]
[321705697,1712418029478,-500.0,0.00025363,2]
[321705698,1712418029503,-500.0,0.00025363,2]
[321705699,1712418029529,-606.03603789,0.00025363,2]
[321705700,1712418037349,-4936.58396211,0.00025363,2]
[321705701,1712418037375,-1244.67,0.00025363,2]
[321705702,1712418037400,-500.0,0.00025363,2]
[321705703,1712418037427,-500.0,0.00025363,2]
[321705704,1712418037453,-1443.14,0.00025363,2]
[321705705,1712418037479,-866.81,0.00025363,2]
[321705706,1712418037504,-500.0,0.00025363,2]
[321705707,1712418037532,-636.53,0.00025363,2]
[321705708,1712418037557,-1066.59,0.00025363,2]
[321705709,1712418037583,-500.0,0.00025363,2]
[321705710,1712418037607,-1279.21,0.00025363,2]
[321705711,1712418037630,-849.95,0.00025363,2]
[321705712,1712418037654,-1004.78,0.00025363,2]
[321705713,1712418037679,-500.0,0.00025363,2]
[321705714,1712418037704,-500.0,0.00025363,2]
[321705715,1712418037732,-4091.19,0.00025363,2]
[321705716,1712418037756,-726.28,0.00025365,2]
[321705717,1712418041486,500.0,0.00025363,2]
[321705718,1712418051872,500.0,0.00025365,2]
[321705719,1712418157555,500.0,0.00025362,2]
[321705720,1712418208898,157.948019,0.00024654,2]
[321705721,1712418210732,1342.62,0.00025362,2]
[321705722,1712418225498,500.0,0.00025362,2]
[321705723,1712418229405,500.0,0.00025362,2]
[321705724,1712418231542,573.15,0.00025362,2]
[321705726,1712418257808,869.0,0.00025362,2]
[321705727,1712418302268,3411.54801889,0.00025362,2]
[321705728,1712418302293,1900.13198111,0.00025362,2]
[321705729,1712418323068,1192.81,0.00025362,2]
[321705730,1712418335321,500.0,0.00025362,2]
[321705731,1712418339746,11942.57897382,0.00025,2]
[321705733,1712418369846,830.7,0.00025362,2]
[321705734,1712418388011,610.01,0.00025362,2]
[321705735,1712418410902,1022.15,0.00025362,2]
[321705736,1712418433620,567.93934921,0.00025362,2]
[321705737,1712418439733,307.423909,0.00030137,120]
[321705738,1712418441763,1225.91,0.00025362,2]
[321705739,1712418453241,814.53,0.00025362,2]
[321705741,1712418466595,500.0,0.00025362,2]
[321705742,1712418470195,500.0,0.00025362,2]
[321705818,1712418632022,-169.17282248,0.0002544,2]
[321705819,1712418632031,-161.0,0.0002553,2]
[321705820,1712418632040,-340.65173681,0.00025539,2]
[321705867,1712418638067,-3321.9193868,0.00025539,2]
[321705868,1712418638077,-300.0,0.0002554,2]
[321705869,1712418638086,-178.31735409,0.0002554,2]
[321705898,1712418643203,-121.68264591,0.0002554,2]